bitfinex/quotes_ETHUSD_20230703
["timestamp","ask_amount","ask_price","bid_price","bid_amount"]
[1688364773993,30.86938816,1947.1,1947.0,0.1]
[1688364774334,31.27658816,1947.1,1947.0,0.1]
[1688364775297,30.86938816,1947.1,1947.0,0.1]
[1688364776133,22.39838816,1947.1,1947.0,0.1]
[1688364779737,15.26254816,1947.1,1947.0,0.1]
[1688364779938,20.39838816,1947.1,1947.0,0.1]
[1688364783538,20.42525629,1947.1,1947.0,0.1]
[1688364783811,20.39838816,1947.1,1947.0,0.1]
[1688364783954,30.27138816,1947.1,1947.0,0.1]
[1688364785132,29.34938816,1947.1,1947.0,0.1]
[1688364785327,29.37606913,1947.1,1947.0,0.1]
[1688364785537,29.34938816,1947.1,1947.0,0.1]
[1688364785735,29.37890666,1947.1,1947.0,0.1]
[1688364786025,29.34938816,1947.1,1947.0,0.1]
[1688364786223,29.37978818,1947.1,1947.0,0.1]
[1688364786423,29.34938816,1947.1,1947.0,0.1]
[1688364786650,29.37920745,1947.1,1947.0,0.1]
[1688364786957,29.34938816,1947.1,1947.0,0.1]
[1688364787173,29.38066011,1947.1,1947.0,0.1]
[1688364787334,29.34938816,1947.1,1947.0,0.1]
[1688364787536,29.37905703,1947.1,1947.0,0.1]
[1688364787736,29.34938816,1947.1,1947.0,0.1]
[1688364790274,29.37727753,1947.1,1947.0,0.1]
[1688364790423,28.86938816,1947.1,1947.0,0.1]
[1688364790627,20.39838816,1947.1,1947.0,0.1]
[1688364798598,22.39838816,1947.1,1947.0,0.1]
[1688364814087,27.79338816,1947.1,1947.0,0.1]
[1688364814247,36.00522816,1947.1,1947.0,0.1]
[1688364814446,36.03507411,1947.1,1947.0,0.1]
[1688364814653,36.00522816,1947.1,1947.0,0.1]
[1688364815260,36.03270586,1947.1,1947.0,0.1]
[1688364815770,36.00522816,1947.1,1947.0,0.1]
[1688364816086,36.03777711,1947.1,1947.0,0.1]
[1688364816443,36.00522816,1947.1,1947.0,0.1]
[1688364816994,36.04027929,1947.1,1947.0,0.1]
[1688364818746,36.00522816,1947.1,1947.0,0.1]
[1688364819289,36.03150913,1947.1,1947.0,0.1]
[1688364819495,36.00522816,1947.1,1947.0,0.1]
[1688364819649,36.03803455,1947.1,1947.0,0.1]
[1688364819992,36.03803455,1947.1,1946.8,0.1]
[1688364819993,7.395,1946.9,1946.8,0.1]
[1688364820170,33.60607327,1946.9,1946.8,0.1]
[1688364820347,33.62159701,1946.9,1946.8,0.1]
[1688364822199,38.62159701,1946.9,1946.8,0.1]
[1688364827494,41.62159701,1946.9,1946.8,0.1]
[1688364831648,21.07612701,1946.9,1946.8,0.1]
[1688364831803,41.5907819,1946.9,1946.8,0.1]
[1688364832024,41.62481358,1946.9,1946.8,0.1]
[1688364835516,41.62481358,1946.9,1946.8,0.05]
[1688364835916,42.02793881,1946.9,1946.8,0.05]
[1688364837349,42.50793881,1946.9,1946.8,0.05]
[1688364839447,8.971,1946.8,1946.7,0.1]
[1688364839651,24.88538984,1946.8,1946.7,0.1]
[1688364840350,24.88538984,1946.8,1946.1,5.13847]
[1688364840351,7.395,1946.1,1946.0,1.0]
[1688364840511,7.395,1946.1,1945.9,0.1]
[1688364840512,0.04783939,1946.0,1945.9,0.1]
[1688364840713,23.41784755,1946.0,1945.9,0.1]
[1688364841263,12.971,1945.8,1945.7,0.1]
[1688364841553,25.93005766,1945.8,1945.7,0.1]
[1688364841856,17.45905766,1945.8,1945.7,0.1]
[1688364842368,28.03505766,1945.8,1945.7,0.1]
[1688364842527,31.03505766,1945.8,1945.7,0.1]
[1688364842730,36.43005766,1945.8,1945.7,0.1]
[1688364843327,12.971,1945.6,1945.5,0.1]
[1688364843665,27.92528766,1945.6,1945.5,0.1]
[1688364844384,31.48128766,1945.6,1945.5,0.1]
[1688364844525,31.00128766,1945.6,1945.5,0.1]
[1688364844726,27.92528766,1945.6,1945.5,0.1]
[1688364845167,32.92528766,1945.6,1945.5,0.1]
[1688364845370,32.42528766,1945.6,1945.5,0.1]
[1688364845564,32.92528766,1945.6,1945.5,0.1]
[1688364846526,27.53028766,1945.6,1945.5,0.1]
[1688364846644,32.92528766,1945.6,1945.5,0.05]
[1688364847332,41.47528766,1945.6,1945.5,0.05]
[1688364848069,40.99528766,1945.6,1945.5,0.05]
[1688364849187,27.53038766,1945.6,1945.5,0.05]
[1688364849488,25.53038766,1945.6,1945.5,0.05]
[1688364849666,5.0520995,1945.6,1945.5,0.966]
[1688364849837,5.0,1945.6,1945.5,1.586632]
[1688364850237,10.27948,1945.7,1945.5,1.586632]
[1688364850540,9.56952,1945.9,1945.6,0.922]
[1688364850541,5.0,1945.9,1945.6,0.922]
[1688364850749,14.69797816,1945.9,1945.8,0.914]
[1688364851153,5.0,1945.9,1945.8,0.914]
[1688364851453,10.13901,1945.9,1945.8,2.440352]
[1688364851688,10.13901,1945.9,1945.8,1.835]
[1688364851893,5.0,1945.9,1945.8,1.835]
[1688364852226,12.13876,1946.0,1945.8,0.921]
[1688364852394,12.13876,1946.0,1945.9,0.922]
[1688364853109,7.13876,1946.0,1945.9,0.922]
[1688364853724,12.27761,1946.0,1945.9,0.922]
[1688364854229,14.84698,1946.0,1945.9,0.922]
[1688364854518,14.84698,1946.0,1945.9,0.91907012]
[1688364856319,19.84698,1946.0,1945.9,0.91907012]
[1688364856725,22.40576816,1946.0,1945.9,0.91907012]
[1688364859142,17.40576816,1946.0,1945.9,0.91907012]
[1688364860012,17.40576816,1946.0,1945.5,0.05]
[1688364860351,2.55878816,1945.9,1945.5,0.05]
[1688364860641,12.8483,1945.8,1945.5,0.05]
[1688364860860,15.40708816,1945.8,1945.6,0.918]
[1688364861663,0.02863343,1945.7,1945.6,0.918]
[1688364861948,10.30769343,1945.7,1945.6,0.918]
[1688364862108,10.27906,1945.7,1945.6,0.918]
[1688364863144,5.0,1945.7,1945.6,0.918]
[1688364863464,5.0,1945.7,1945.6,6.0578]
[1688364863627,5.0,1945.7,1945.6,7.182576]
[1688364864251,5.13927,1945.8,1945.6,7.182576]
[1688364864563,5.13927,1945.8,1945.7,0.919]
[1688364865069,5.13927,1945.8,1945.7,6.05853]
[1688364865561,5.13919,1945.9,1945.7,6.05853]
[1688364865718,10.13859,1946.1,1945.8,1.831]
[1688364865918,15.27722,1946.1,1946.0,0.914]
[1688364866849,17.84646,1946.1,1946.0,0.914]
[1688364867019,12.84646,1946.1,1946.0,0.914]
[1688364867222,12.13837,1946.2,1946.0,0.914]
[1688364867421,10.27696,1946.1,1946.0,0.605297]
[1688364868369,10.27696,1946.1,1945.8,11.20023]
[1688364868526,10.27696,1946.1,1946.0,0.918]
[1688364871729,7.13837,1946.2,1946.0,6.05674]
[1688364871987,12.27679,1946.2,1946.1,0.918]
[1688364872142,10.138,1946.3,1946.1,11.800634]
[1688364872334,10.138,1946.3,1946.2,0.916]
[1688364872335,5.0,1946.3,1946.2,0.916]
[1688364872528,5.0,1946.3,1946.2,6.05421]
[1688364873146,6.376,1946.8,1946.2,13.76152]
[1688364873147,15.27418,1946.7,1946.2,13.76152]
[1688364873471,10.13706,1946.7,1946.6,0.922]
[1688364873771,5.0,1946.7,1946.6,0.922]
[1688364874154,10.13689,1946.7,1946.6,0.922]
[1688364874473,10.27378,1946.7,1946.6,0.922]
[1688364875034,12.84222,1946.7,1946.6,0.922]
[1688364875965,10.27378,1946.7,1946.6,0.922]
[1688364876143,15.27378,1946.7,1946.6,0.922]
[1688364876348,10.13689,1946.7,1946.6,0.922]
[1688364877036,5.13689,1946.7,1946.6,0.922]
[1688364877233,7.0,1946.8,1946.6,6.05916]
[1688364877458,7.0,1946.8,1946.7,0.918]
[1688364877664,12.13664,1946.8,1946.7,0.918]
[1688364878057,7.13664,1946.8,1946.7,0.918]
[1688364878248,5.13664,1946.8,1946.7,0.918]
[1688364879497,10.27328,1946.8,1946.7,0.918]
[1688364883245,5.13664,1946.8,1946.7,0.918]
[1688364883583,10.1364,1946.9,1946.7,11.19178]
[1688364884286,5.1364,1946.9,1946.7,11.19178]
[1688364885391,5.1364,1946.9,1946.7,5.13689]
[1688364887172,10.1364,1946.9,1946.7,5.13689]
[1688364888992,15.27287,1946.9,1946.7,5.13689]
[1688364889346,10.1364,1946.9,1946.5,6.05942]
[1688364889554,10.1364,1946.9,1946.5,6.05929]
[1688364890508,10.1364,1946.9,1946.5,11.19671]
[1688364891502,10.1364,1946.9,1946.6,0.92]
[1688364891797,15.27277,1946.9,1946.6,11.19403]
[1688364891997,5.0,1946.9,1946.7,0.922]
[1688364892205,17.27255,1947.0,1946.7,6.0587]
[1688364892377,5.0,1947.0,1946.7,12.84203]
[1688364892563,5.0,1947.0,1946.9,12.84092]
[1688364892876,5.0,1947.0,1946.9,13.75492]
[1688364893080,2.0,1947.4,1946.9,13.75492]
[1688364893292,2.0,1947.4,1947.2,0.919]
[1688364893465,2.0,1947.4,1947.2,6.0545]
[1688364893997,2.0,1947.4,1947.2,11.19007]
[1688364894492,5.13482,1947.5,1947.2,11.19007]
[1688364895078,2.0,1947.4,1947.2,11.19007]
[1688364895567,12.2701,1947.4,1947.2,6.05457]
[1688364895773,12.2701,1947.4,1947.1,5.13565]
[1688364896090,17.2701,1947.4,1947.1,5.13565]
[1688364896301,19.83762,1947.4,1947.1,5.13565]
[1688364896812,19.83762,1947.4,1947.0,11.19394]
[1688364899312,17.2701,1947.4,1947.0,11.19394]
[1688364901108,17.2701,1947.4,1946.9,5.13634]
[1688364901109,2.55878816,1947.3,1946.9,5.13634]
[1688364901279,2.55878816,1947.3,1946.8,14.19522]
[1688364901280,10.27142,1947.2,1946.8,14.19522]
[1688364901473,10.27142,1947.2,1946.8,9.05859]
[1688364901663,12.83020816,1947.2,1946.8,9.05859]
[1688364901865,12.83020816,1947.2,1946.8,14.19522]
[1688364902107,17.83020816,1947.2,1946.8,14.19522]
[1688364904984,17.83020816,1947.2,1946.8,0.922]
[1688364905205,2.0,1947.1,1946.7,6.0588]
[1688364905517,14.12962,1947.1,1946.8,10.27315]
[1688364905874,14.12962,1947.1,1946.8,5.13652]
[1688364906075,19.12962,1947.1,1946.8,5.13652]
[1688364906273,19.12962,1947.1,1946.7,6.05886]
[1688364906475,2.0,1946.9,1946.3,1.950436]
[1688364906720,10.27406,1946.7,1946.4,5.13768]
[1688364906940,7.69581816,1946.7,1946.3,5.13793]
[1688364907219,7.69567816,1946.7,1946.3,10.27588]
[1688364907386,12.83256816,1946.7,1946.3,10.27588]
[1688364907588,11.82448374,1946.8,1946.0,11.6056982]
[1688364907589,10.27516,1946.5,1946.0,11.6056982]
[1688364907779,10.27516,1946.5,1946.0,10.6836982]
[1688364907780,12.84387,1946.5,1946.0,10.6836982]
[1688364907985,12.84387,1946.5,1946.0,5.1386]
[1688364908385,0.02742771,1946.4,1946.0,5.1386]
[1688364908603,0.02742771,1946.4,1945.9,11.19182]
[1688364908604,5.13801,1946.3,1945.9,11.19182]
[1688364908800,10.27566,1946.4,1946.0,0.922]
[1688364909003,10.27566,1946.4,1946.0,6.06068]
[1688364909192,10.27566,1946.4,1946.0,0.922]
[1688364909415,10.27566,1946.4,1946.0,6.06073]
[1688364909828,0.02688971,1946.3,1946.0,11.19947]
[1688364910002,0.02688971,1946.3,1946.1,11.19876]
[1688364910003,5.138,1946.3,1946.1,11.19876]
[1688364910588,5.13779,1946.4,1946.1,13.768]
[1688364910818,17.11067,1946.5,1946.1,13.768]
[1688364911034,5.0,1946.5,1946.4,0.918]
[1688364911221,2.0,1946.6,1946.4,11.19338]
[1688364911222,5.0,1946.6,1946.4,11.19338]
[1688364911419,5.0,1946.6,1946.4,15.13845]
[1688364911886,5.0,1946.6,1946.4,14.22045]
[1688364912091,2.0,1946.8,1946.5,0.914]
[1688364912316,2.0,1946.8,1946.6,5.13716]
[1688364913435,2.0,1946.8,1946.6,10.27432]
[1688364914336,5.0,1946.9,1946.6,10.27432]
[1688364914337,10.1364,1946.9,1946.6,10.27432]
[1688364914633,10.1364,1946.9,1946.6,15.136602]
[1688364914634,5.0,1946.9,1946.6,15.136602]
[1688364915137,7.13572,1947.2,1946.7,0.92]
[1688364915343,4.55878816,1947.2,1946.9,10.27268]
[1688364915565,2.0,1947.2,1946.9,10.27268]
[1688364915935,7.13568,1947.2,1946.9,10.27268]
[1688364916146,12.27136,1947.2,1946.9,10.27268]
[1688364916530,2.0,1947.2,1946.9,10.27268]
[1688364916916,2.0,1947.2,1946.9,12.84086]
[1688364918323,7.1356,1947.2,1946.9,14.216946]
[1688364919577,2.0,1947.2,1946.9,14.216946]
[1688364919776,15.35093374,1947.3,1946.9,14.216946]
[1688364919939,20.48643374,1947.3,1946.9,14.216946]
[1688364921244,20.48643374,1947.3,1947.0,1.08107333]
[1688364921532,20.48643374,1947.3,1947.0,11.35307333]
[1688364922165,15.33541,1947.3,1947.0,11.35307333]
[1688364922366,2.0,1947.4,1947.0,14.83512333]
[1688364922548,2.0,1947.4,1947.0,13.92112333]
[1688364922738,2.0,1947.4,1947.1,1.39211233]
[1688364922947,2.0,1947.4,1947.2,10.27114]
[1688364924171,7.13505,1947.4,1947.2,5.13557]
[1688364924894,7.13505,1947.4,1947.2,10.27114]
[1688364925092,2.0,1947.4,1947.2,10.27114]
[1688364926360,2.0,1947.4,1947.2,14.50339702]
[1688364927478,7.0,1947.6,1947.2,14.50339702]
[1688364927697,7.0,1947.6,1947.3,0.918]
[1688364927854,7.0,1947.6,1947.4,10.2701]
[1688364928184,5.0,1947.6,1947.4,11.1881]
[1688364928349,7.0,1947.6,1947.4,10.2701]
[1688364929167,2.0,1947.6,1947.4,10.2701]
[1688364931185,7.13453,1947.6,1947.4,11.645868]
[1688364931349,5.13453,1947.6,1947.4,11.645868]
[1688364932460,5.13433,1947.7,1947.4,11.645868]
[1688364932854,10.26874,1947.7,1947.4,11.645868]
[1688364934273,10.26874,1947.7,1947.4,1.375768]
[1688364934478,10.26874,1947.7,1947.4,5.13502]
[1688364934677,10.26874,1947.7,1947.3,5.13511]
[1688364934875,10.26874,1947.7,1947.3,10.27042]
[1688364935390,10.26874,1947.7,1947.3,12.83807]
[1688364936068,5.13433,1947.7,1947.3,12.83807]
[1688364936246,5.13433,1947.7,1947.4,7.340677]
[1688364936651,5.13433,1947.7,1947.4,11.553727]
[1688364937569,5.13433,1947.7,1947.2,6.80097702]
[1688364937770,12.44559,1947.7,1947.3,5.13525]
[1688364938960,12.44559,1947.7,1947.3,10.27056]
[1688364939165,17.44559,1947.7,1947.3,10.27056]
[1688364939466,17.44559,1947.7,1947.3,12.83821]
[1688364939467,12.31126,1947.7,1947.3,12.83821]
[1688364939690,7.177,1947.7,1947.3,14.2885787]
[1688364940075,2.177,1947.7,1947.3,14.2885787]
[1688364940403,17.13661,1947.8,1947.3,14.2885787]
[1688364941066,12.13661,1947.8,1947.3,14.2885787]
[1688364941264,1.8683,1947.8,1947.3,15.2105787]
[1688364941464,1.8683,1947.8,1947.4,2.44305787]
[1688364941668,7.00233,1947.8,1947.5,12.83685]
[1688364942207,7.00233,1947.8,1947.5,5.13473]
[1688364942390,12.13636,1947.8,1947.5,5.13473]
[1688364943169,12.13636,1947.8,1947.5,10.26951]
[1688364943515,7.00233,1947.8,1947.5,10.26951]
[1688364944410,1.8683,1947.8,1947.5,11.553212]
[1688364944608,1.8683,1947.8,1947.5,14.120602]
[1688364945708,7.0023,1947.8,1947.5,14.120602]
[1688364947272,7.0023,1947.8,1947.5,11.553212]
[1688364948016,7.0023,1947.8,1947.5,6.418432]
[1688364948211,2.55878816,1947.7,1947.4,5.13501]
[1688364948410,10.26904,1947.6,1947.3,10.27036]
[1688364949312,15.26904,1947.6,1947.3,10.27036]
[1688364949819,2.55878816,1947.5,1947.3,10.27036]
[1688364949970,2.55878816,1947.5,1947.0,3.487]
[1688364949971,2.0,1947.2,1947.0,5.13587]
[1688364950175,2.0,1947.2,1947.1,5.1357]
[1688364950809,1.8309,1947.3,1947.1,5.1357]
[1688364950976,2.0,1947.5,1947.2,1.43557]
[1688364951177,2.0,1947.5,1947.3,10.27062]
[1688364952270,2.0,1947.5,1947.2,5.64906]
[1688364952614,2.0,1947.5,1947.2,10.78452]
[1688364953148,2.0,1947.5,1947.2,5.64903]
[1688364953438,2.0,1947.5,1947.2,10.7846]
[1688364953601,7.1348,1947.5,1947.2,5.64903]
[1688364953938,7.1348,1947.5,1947.2,5.13546]
[1688364954736,12.2696,1947.5,1947.2,10.27103]
[1688364957709,7.1348,1947.5,1947.2,10.27103]
[1688364957915,7.1348,1947.5,1947.2,12.83881]
[1688364959445,2.0,1947.5,1947.2,12.83881]
[1688364969351,2.0,1947.5,1947.2,5.13546]
[1688364969554,7.13482,1947.5,1947.2,5.13546]
[1688364970250,7.13482,1947.5,1947.1,10.27128]
[1688364970577,12.26964,1947.5,1947.1,11.646631]
[1688364971434,7.13482,1947.5,1947.1,11.646631]
[1688364971834,12.2699,1947.5,1947.1,11.646631]
[1688364971989,12.2699,1947.5,1947.1,6.510901]
[1688364974148,14.83729,1947.5,1947.1,6.510901]
[1688364974349,14.83729,1947.5,1947.2,0.6510901]
[1688364974549,7.13495,1947.5,1947.2,5.7866401]
[1688364976396,12.26973,1947.5,1947.2,5.7866401]
[1688364978183,10.26973,1947.5,1947.2,6.7086401]
[1688364978496,12.83712,1947.5,1947.2,6.7086401]
[1688364982194,12.83712,1947.5,1947.2,5.7866401]
[1688364983707,12.73712,1947.5,1947.2,5.7866401]
[1688364984193,12.73712,1947.5,1947.2,0.6510901]
[1688364984411,12.73712,1947.5,1947.1,0.914]
[1688364984895,12.73712,1947.5,1947.0,4.31903514]
[1688364985298,17.73712,1947.5,1947.0,9.45511514]
[1688364985458,17.73712,1947.5,1947.0,9.05208]
[1688364987198,17.73712,1947.5,1947.0,8.13608]
[1688364987399,17.73712,1947.5,1947.1,0.813608]
[1688364987558,17.73712,1947.5,1947.0,8.13603]
[1688364987906,19.61592,1947.5,1947.0,8.13603]
[1688364989662,19.61592,1947.5,1947.0,13.27213]
[1688364989997,19.61592,1947.5,1947.0,15.84018]
[1688364990195,14.61592,1947.5,1947.0,15.84018]
[1688364990498,14.61592,1947.5,1947.0,17.515998]
[1688364990737,12.04853,1947.5,1947.0,17.515998]
[1688364990936,6.91375,1947.5,1947.0,17.515998]
[1688364992538,1.8788,1947.5,1947.0,17.515998]
[1688364993235,5.40381773,1947.6,1947.0,17.515998]
[1688364993399,5.40381773,1947.6,1947.1,1.7515998]
[1688364993600,10.53840773,1947.6,1947.2,10.27088]
[1688364994537,15.67311773,1947.6,1947.2,12.83866]
[1688364995537,18.24037773,1947.6,1947.2,10.27088]
[1688364997839,18.24037773,1947.6,1947.2,12.83866]
[1688364997840,15.67311773,1947.6,1947.2,12.83866]
[1688364998144,10.67311773,1947.6,1947.3,11.554226]
[1688364998536,2.0,1947.5,1947.3,11.554226]
[1688364999847,0.40381773,1947.6,1947.3,11.554226]
[1688365000014,2.0,1947.5,1947.3,11.554226]
[1688365000214,10.26942,1947.6,1947.3,11.554226]
[1688365000415,2.0,1947.5,1947.3,11.554226]
[1688365000718,2.0,1947.5,1947.4,6.2904726]
[1688365002554,10.26942,1947.6,1947.4,6.2904726]
[1688365002756,5.13469,1947.6,1947.4,5.13505]
[1688365003515,2.0,1947.5,1947.4,5.13505]
[1688365004863,7.13478,1947.5,1947.4,5.13505]
[1688365005417,7.13478,1947.5,1947.3,5.13507]
[1688365005418,7.13478,1947.5,1947.3,10.27026]
[1688365009794,5.13478,1947.5,1947.3,10.27026]
[1688365010083,5.13478,1947.5,1947.3,11.554064]
[1688365010857,7.13478,1947.5,1947.3,11.554064]
[1688365013497,14.83695,1947.5,1947.0,5.55526659]
[1688365013651,18.97535,1947.5,1947.0,5.1359]
[1688365013852,0.02830533,1947.4,1947.0,10.27181]
[1688365014056,5.13536,1947.3,1947.0,12.83986]
[1688365014252,5.13536,1947.3,1947.0,14.123846]
[1688365014498,5.13516,1947.4,1947.0,14.123846]
[1688365015052,0.02655964,1947.3,1947.0,14.123846]
[1688365015296,5.13516,1947.4,1947.0,14.123846]
[1688365015594,16.40819,1947.5,1947.0,14.123846]
[1688365016250,21.40819,1947.5,1947.0,14.123846]
[1688365017298,16.40819,1947.5,1947.0,14.123846]
[1688365017496,16.40819,1947.5,1947.1,1.4123846]
[1688365017652,16.40819,1947.5,1947.2,5.13552]
[1688365018596,16.40819,1947.5,1947.2,10.27109]
[1688365019168,21.40819,1947.5,1947.2,10.27109]
[1688365019363,16.27324,1947.5,1947.2,10.27109]
[1688365020157,11.27324,1947.5,1947.2,10.27109]
[1688365020729,16.40819,1947.5,1947.2,10.27109]
[1688365020853,2.0,1947.5,1947.2,14.07799009]
[1688365021048,5.0,1947.6,1947.3,0.92]
[1688365021255,5.0,1947.6,1947.4,10.2701]
[1688365021488,2.0,1947.5,1947.4,10.2701]
[1688365022382,2.0,1947.5,1947.4,5.13505]
[1688365022796,7.13478,1947.5,1947.4,5.13505]
[1688365024554,2.0,1947.5,1947.4,5.13505]
[1688365026589,2.0,1947.5,1947.4,6.162071]
[1688365026758,2.0,1947.5,1947.4,1.027021]
[1688365031725,2.0,1947.5,1947.4,6.162071]
[1688365032228,2.0,1947.5,1947.4,1.027021]
[1688365033248,10.26931,1947.6,1947.4,1.027021]
[1688365033448,2.0,1947.5,1947.3,5.13513]
[1688365037569,7.13488,1947.5,1947.2,1.23912009]
[1688365037863,7.13488,1947.5,1947.2,10.27081]
[1688365038162,8.93148,1947.5,1947.2,10.27081]
[1688365039363,3.7966,1947.5,1947.2,10.27081]
[1688365043042,3.7966,1947.5,1947.2,12.83859]
[1688365043829,8.9314,1947.5,1947.2,12.83859]
[1688365044041,8.9314,1947.5,1947.0,6.35793214]
[1688365044042,20.10937816,1947.5,1946.9,6.47560881]
[1688365044362,10.27104,1947.3,1946.8,4.02818]
[1688365044565,10.27104,1947.3,1946.8,3.0]
[1688365044566,1.8808,1947.2,1946.8,3.0]
[1688365044869,7.01655,1947.2,1946.8,3.0]
[1688365045254,12.15231,1947.2,1946.8,3.0]
[1688365046142,17.15231,1947.2,1946.8,13.27325]
[1688365046525,12.01655,1947.2,1946.8,16.10929971]
[1688365046869,12.01655,1947.2,1946.8,18.06887268]
[1688365047101,7.01655,1947.2,1946.8,18.06887268]
[1688365047514,12.1523,1947.2,1946.8,18.06887268]
[1688365048391,7.01655,1947.2,1946.8,18.06887268]
[1688365050511,1.8808,1947.2,1946.8,18.06887268]
[1688365050695,1.8808,1947.2,1946.9,1.80688727]
[1688365050904,1.8808,1947.2,1947.0,5.1361]
[1688365051087,12.34084,1947.4,1947.0,5.1361]
[1688365051088,12.34077,1947.4,1947.0,10.2722]
[1688365051295,14.31687,1947.4,1947.0,10.2722]
[1688365051814,19.45203,1947.4,1947.0,10.2722]
[1688365051981,19.45203,1947.4,1947.0,11.82912473]
[1688365052177,14.45203,1947.4,1947.0,11.82912473]
[1688365053589,9.31687,1947.4,1947.0,11.82912473]
[1688365053795,14.45192,1947.4,1947.0,11.82912473]
[1688365054218,9.31685,1947.4,1947.0,11.82912473]
[1688365055329,14.4519,1947.4,1947.0,11.82912473]
[1688365055922,4.1818,1947.4,1947.0,11.82912473]
[1688365056220,4.1818,1947.4,1946.9,3.49016]
[1688365056221,9.31687,1947.4,1947.1,11.45439247]
[1688365056435,4.1818,1947.4,1947.1,10.27148]
[1688365057114,2.2057,1947.4,1947.1,10.27148]
[1688365058483,7.3408,1947.4,1947.1,10.27148]
[1688365060727,2.2057,1947.4,1947.1,10.27148]
[1688365060886,1.7948,1947.5,1947.1,11.18548]
[1688365061085,1.7948,1947.5,1947.2,1.118548]
[1688365061392,1.7948,1947.5,1947.2,6.254058]
[1688365062390,1.7948,1947.5,1947.2,11.389628]
[1688365062587,7.40042,1947.6,1947.2,13.957408]
[1688365065030,12.53502,1947.6,1947.2,13.957408]
[1688365065829,15.10228,1947.6,1947.2,11.389628]
[1688365066018,15.10228,1947.6,1947.2,10.27108]
[1688365067124,20.10228,1947.6,1947.2,10.27108]
[1688365071142,15.10228,1947.6,1947.2,10.27108]
[1688365075337,12.53502,1947.6,1947.2,12.83886]
[1688365085416,12.53502,1947.6,1947.2,10.27108]
[1688365096226,17.53502,1947.6,1947.2,10.27108]
[1688365098042,20.10228,1947.6,1947.2,10.27108]
[1688365101789,20.10228,1947.6,1947.1,0.914]
[1688365101927,1.8427,1947.5,1947.0,5.13597]
[1688365102122,10.27036,1947.4,1947.0,5.13597]
[1688365102370,12.83788,1947.4,1947.0,5.13597]
[1688365103420,12.83788,1947.4,1947.0,10.27207]
[1688365106107,10.27036,1947.4,1947.0,10.27207]
[1688365107129,15.27036,1947.4,1947.0,10.27207]
[1688365109209,10.27036,1947.4,1947.0,10.27207]
[1688365109775,10.27036,1947.4,1947.0,13.10785971]
[1688365109982,10.27036,1947.4,1947.0,14.51084568]
[1688365110569,5.13518,1947.4,1947.0,14.51084568]
[1688365115710,5.13507,1947.4,1947.0,14.51084568]
[1688365116664,5.13507,1947.4,1947.0,15.43284568]
[1688365117368,5.13507,1947.4,1947.0,14.51084568]
[1688365119607,8.97765,1947.5,1947.0,14.51084568]
[1688365119916,14.11268,1947.5,1947.0,14.51084568]
[1688365121675,8.97765,1947.5,1947.0,14.51084568]
[1688365122015,14.11268,1947.5,1947.0,14.51084568]
[1688365124420,14.11268,1947.5,1947.0,13.10785971]
[1688365125919,8.97765,1947.5,1947.0,13.10785971]
[1688365127421,2.0,1947.5,1947.0,21.06964787]
[1688365127619,7.13481,1947.5,1947.2,6.05152]
[1688365130607,12.26962,1947.5,1947.2,6.05152]
[1688365132010,12.26962,1947.5,1947.2,5.13552]
[1688365132412,12.26962,1947.5,1947.1,6.05774]
[1688365133850,12.26962,1947.5,1947.1,7.35867297]
[1688365134844,12.26962,1947.5,1947.1,12.49451297]
[1688365137055,12.26962,1947.5,1947.1,12.8968193]
[1688365140868,12.26962,1947.5,1947.1,11.9748193]
[1688365141867,12.26962,1947.5,1947.1,14.5427393]
[1688365146196,12.26962,1947.5,1947.2,1.45427393]
[1688365146335,12.26962,1947.5,1947.3,5.13531]
[1688365151340,12.26962,1947.5,1947.1,5.53798633]
[1688365151536,14.83701,1947.5,1947.0,5.13593]
[1688365152240,5.13536,1947.3,1947.0,10.27186]
[1688365158624,14.39011,1947.4,1947.0,10.27186]
[1688365158796,9.25481,1947.4,1947.0,14.216108]
[1688365159466,9.25481,1947.4,1947.0,12.83991]
[1688365159980,9.25481,1947.4,1947.0,10.27186]
[1688365160386,9.25481,1947.4,1947.0,12.83991]
[1688365160936,4.1196,1947.4,1947.0,13.76191]
[1688365161068,4.1196,1947.4,1947.0,14.02964971]
[1688365161269,4.1196,1947.4,1947.1,1.40296497]
[1688365161469,4.1196,1947.4,1947.2,5.13557]
[1688365162175,4.1196,1947.4,1947.2,10.27114]
[1688365170127,2.0,1947.5,1947.2,12.83892]
[1688365172347,7.13482,1947.5,1947.2,12.83892]
[1688365174212,12.26964,1947.5,1947.2,10.27114]
[1688365177105,10.26964,1947.5,1947.2,11.555042]
[1688365177463,5.0,1947.7,1947.4,0.922]
[1688365177755,5.0,1947.7,1947.5,10.26956]
[1688365177935,5.0,1947.7,1947.5,10.53729971]
[1688365178248,5.0,1947.7,1947.6,0.922]
[1688365178411,5.0,1947.7,1947.6,11.19104]
[1688365179248,5.13373,1947.9,1947.6,11.19104]
[1688365182546,0.01552374,1947.8,1947.5,5.13472]
[1688365182745,5.13426,1947.7,1947.5,5.13472]
[1688365183158,0.01552374,1947.8,1947.5,12.83689]
[1688365183483,7.0,1947.9,1947.5,12.83689]
[1688365183687,12.13373,1947.9,1947.5,12.83689]
[1688365184192,7.13373,1947.9,1947.5,12.83689]
[1688365184781,12.26746,1947.9,1947.5,12.83689]